Workbook

Sheet 申込
A1: このシートを直接入力・編集することはできません。訂正が必要な場合は操作説明書をご覧ください。
A2: 初期設定
A3: 人数入力
A5: 学校コード
A6: 校 種
A7: 所 在 地
A8: 学 校 名
A9: 担当者名
A10: 全児童生徒数
A11: 実 施 日
A12: 小1硬
A13: 小2硬
A14: 小1
A15: 小2
A16: 小3
A17: 小4
A18: 小5
A19: 小6
A20: 中1
A21: 中2
A22: 中3

Sheet 学校コード (hidden)
C1: =COUNTA(C10:C330)+9 -> 323 | F1: =IF(D1="","",VLOOKUP(D1,区→コード,2,FALSE)) ->  | G1: =IF(OR(C1="",,D1="",J1=""),"",C1*100+F1) ->  | I1: =IF(OR(C1="",H1="",J1),"",C1*10000+F1*100+H1) ->  | O1: =IF(I1="","",I1) -> 
A2: 登録&受付数 | D2: 1 | E2: 2 | F2: 3 | G2: 4 | H2: 5 | I2: 6 | J2: 7 | K2: 8 | L2: 9 | M2: 10 | N2: 11 | O2: 合 計 | P2: コードの 自動生成
D3: =VLOOKUP(D2,コード→区,2,FALSE) -> 東区 | E3: 西区 | F3: 南区 | G3: 北区 | H3: 白石区 | I3: 豊平区 | J3: 中央区 | K3: 手稲区 | L3: 厚別区
A4: 1 | B4: 小学 | C4: 受 付 数 | O4: =SUM(D4:N4) -> 0 | P4: シート 修正 保護解除
C5: 登 録 数 | D5: =IF($C$1=0,"",COUNTIF($E10:$E$330,$A4*100+D$2)) -> 0 | E5: =IF($C$1=0,"",COUNTIF($E10:$E$330,$A4*100+E$2)) -> 0 | F5: =IF($C$1=0,"",COUNTIF($E10:$E$330,$A4*100+F$2)) -> 0 | G5: =IF($C$1=0,"",COUNTIF($E10:$E$330,$A4*100+G$2)) -> 0 | H5: =IF($C$1=0,"",COUNTIF($E10:$E$330,$A4*100+H$2)) -> 0 | I5: =IF($C$1=0,"",COUNTIF($E10:$E$330,$A4*100+I$2)) -> 0 | J5: =IF($C$1=0,"",COUNTIF($E10:$E$330,$A4*100+J$2)) -> 0 | K5: =IF($C$1=0,"",COUNTIF($E10:$E$330,$A4*100+K$2)) -> 0 | L5: =IF($C$1=0,"",COUNTIF($E10:$E$330,$A4*100+L$2)) -> 0 | M5: =IF($C$1=0,"",COUNTIF($E10:$E$330,$A4*100+M$2)) -> 0 | N5: =IF($C$1=0,"",COUNTIF($E10:$E$330,$A4*100+N$2)) -> 0 | O5: =SUM(D5:N5) -> 0
A6: 2 | B6: 中学 | C6: 受 付 数 | O6: =SUM(D6:N6) -> 0
C7: 登 録 数 | D7: =IF($C$1=0,"",COUNTIF($E10:$E$330,$A6*100+D$2)) -> 0 | E7: =IF($C$1=0,"",COUNTIF($E10:$E$330,$A6*100+E$2)) -> 0 | F7: =IF($C$1=0,"",COUNTIF($E10:$E$330,$A6*100+F$2)) -> 0 | G7: =IF($C$1=0,"",COUNTIF($E10:$E$330,$A6*100+G$2)) -> 0 | H7: =IF($C$1=0,"",COUNTIF($E10:$E$330,$A6*100+H$2)) -> 0 | I7: =IF($C$1=0,"",COUNTIF($E10:$E$330,$A6*100+I$2)) -> 0 | J7: =IF($C$1=0,"",COUNTIF($E10:$E$330,$A6*100+J$2)) -> 0 | K7: =IF($C$1=0,"",COUNTIF($E10:$E$330,$A6*100+K$2)) -> 0 | L7: =IF($C$1=0,"",COUNTIF($E10:$E$330,$A6*100+L$2)) -> 0 | M7: =IF($C$1=0,"",COUNTIF($E10:$E$330,$A6*100+M$2)) -> 0 | N7: =IF($C$1=0,"",COUNTIF($E10:$E$330,$A6*100+N$2)) -> 0 | O7: =SUM(D7:N7) -> 0
A9: 種 | B9: 校 | C9: 所在地 | D9: 所在地 | E9: 地コード | F9: 校番 | G9: コード | H9: 学校名 | J9: がっこうめい | M9: コード | O9: =IF(I9="","",I9) -> 
A10: 1 | B10: =IF(A10="","",LEFT(VLOOKUP(A10,コード→校種,2,FALSE),1)) -> 小 | C10: 清田区 | D10: =IF(C10="","",VLOOKUP(C10,区→コード,2,FALSE)) -> 0 | E10: =IF(OR(A10="",D10=""),"",A10*10+D10) -> 10 | F10: 1 | G10: =IF(OR(E10="",F10="",H10=""),"",E10*100+F10) -> 1001 | H10: 有明小 | J10: ありあけ | M10: =IF(G10="","",G10) -> 1001
A11: 1 | B11: 小 | C11: 清田区 | D11: 0 | E11: 10 | F11: 2 | G11: 1002 | H11: 美しが丘小 | J11: うつくしがおか | M11: 1002
A12: 1 | B12: 小 | C12: 清田区 | D12: 0 | E12: 10 | F12: 3 | G12: 1003 | H12: 美しが丘緑小 | J12: うつくしがおかみどり | M12: 1003
A13: 1 | B13: 小 | C13: 清田区 | D13: 0 | E13: 10 | F13: 4 | G13: 1004 | H13: 北野小 | J13: きたの | M13: 1004
A14: 1 | B14: 小 | C14: 清田区 | D14: 0 | E14: 10 | F14: 5 | G14: 1005 | H14: 北野台小 | J14: きたのだい | M14: 1005
A15: 1 | B15: 小 | C15: 清田区 | D15: 0 | E15: 10 | F15: 6 | G15: 1006 | H15: 北野平小 | J15: きたのだいら | M15: 1006
A16: 1 | B16: 小 | C16: 清田区 | D16: 0 | E16: 10 | F16: 7 | G16: 1007 | H16: 清田小 | J16: きよた | M16: 1007
A17: 1 | B17: 小 | C17: 清田区 | D17: 0 | E17: 10 | F17: 8 | G17: 1008 | H17: 清田緑小 | J17: きよたみどり | M17: 1008
A18: 1 | B18: 小 | C18: 清田区 | D18: 0 | E18: 10 | F18: 9 | G18: 1009 | H18: 清田南小 | J18: きよたみなみ | M18: 1009
A19: 1 | B19: 小 | C19: 清田区 | D19: 0 | E19: 10 | F19: 10 | G19: 1010 | H19: 三里塚小 | J19: さんりづか | M19: 1010
A20: 1 | B20: 小 | C20: 清田区 | D20: 0 | E20: 10 | F20: 11 | G20: 1011 | H20: 真栄小 | J20: しんえい | M20: 1011
A21: 1 | B21: 小 | C21: 清田区 | D21: 0 | E21: 10 | F21: 12 | G21: 1012 | H21: 平岡小 | J21: ひらおか | M21: 1012
A22: 1 | B22: 小 | C22: 清田区 | D22: 0 | E22: 10 | F22: 13 | G22: 1013 | H22: 平岡公園小 | J22: ひらおかこうえん | M22: 1013
A23: 1 | B23: 小 | C23: 清田区 | D23: 0 | E23: 10 | F23: 14 | G23: 1014 | H23: 平岡中央小 | J23: ひらおかちゅうおう | M23: 1014
A24: 1 | B24: 小 | C24: 清田区 | D24: 0 | E24: 10 | F24: 15 | G24: 1015 | H24: 平岡南小 | J24: ひらおかみなみ | M24: 1015
A25: 1 | B25: 小 | C25: 東区 | D25: 1 | E25: 11 | F25: 1 | G25: 1101 | H25: 丘珠小 | J25: おかだま | M25: 1101
A26: 1 | B26: 小 | C26: 東区 | D26: 1 | E26: 11 | F26: 2 | G26: 1102 | H26: 開成小 | J26: かいせい | M26: 1102
A27: 1 | B27: 小 | C27: 東区 | D27: 1 | E27: 11 | F27: 3 | G27: 1103 | H27: 北小 | J27: きた | M27: 1103
A28: 1 | B28: 小 | C28: 東区 | D28: 1 | E28: 11 | F28: 4 | G28: 1104 | H28: 北園小 | J28: きたその | M28: 1104
A29: 1 | B29: 小 | C29: 東区 | D29: 1 | E29: 11 | F29: 5 | G29: 1105 | H29: 栄小 | J29: さかえ | M29: 1105
A30: 1 | B30: 小 | C30: 東区 | D30: 1 | E30: 11 | F30: 6 | G30: 1106 | H30: 栄北小 | J30: さかえきた | M30: 1106
A31: 1 | B31: 小 | C31: 東区 | D31: 1 | E31: 11 | F31: 7 | G31: 1107 | H31: 栄西小 | J31: さかえにし | M31: 1107
A32: 1 | B32: 小 | C32: 東区 | D32: 1 | E32: 11 | F32: 8 | G32: 1108 | H32: 栄東小 | J32: さかえひがし | M32: 1108
A33: 1 | B33: 小 | C33: 東区 | D33: 1 | E33: 11 | F33: 9 | G33: 1109 | H33: 栄町小 | J33: さかえまち | M33: 1109
A34: 1 | B34: 小 | C34: 東区 | D34: 1 | E34: 11 | F34: 10 | G34: 1110 | H34: 栄緑小 | J34: さかえみどり | M34: 1110
A35: 1 | B35: 小 | C35: 東区 | D35: 1 | E35: 11 | F35: 11 | G35: 1111 | H35: 栄南小 | J35: さかえみなみ | M35: 1111
A36: 1 | B36: 小 | C36: 東区 | D36: 1 | E36: 11 | F36: 12 | G36: 1112 | H36: 札苗小 | J36: さつなえ | M36: 1112
A37: 1 | B37: 小 | C37: 東区 | D37: 1 | E37: 11 | F37: 13 | G37: 1113 | H37: 札苗北小 | J37: さつなえきた | M37: 1113
A38: 1 | B38: 小 | C38: 東区 | D38: 1 | E38: 11 | F38: 14 | G38: 1114 | H38: 札苗緑小 | J38: さつなえみどり | M38: 1114
A39: 1 | B39: 小 | C39: 東区 | D39: 1 | E39: 11 | F39: 15 | G39: 1115 | H39: 札幌小 | J39: さっぽろ | M39: 1115
A40: 1 | B40: 小 | C40: 東区 | D40: 1 | E40: 11 | F40: 16 | G40: 1116 | H40: 東光小 | J40: とうこう | M40: 1116
A41: 1 | B41: 小 | C41: 東区 | D41: 1 | E41: 11 | F41: 17 | G41: 1117 | H41: 苗穂小 | J41: なえぼ | M41: 1117
A42: 1 | B42: 小 | C42: 東区 | D42: 1 | E42: 11 | F42: 18 | G42: 1118 | H42: 中沼小 | J42: なかぬま | M42: 1118
A43: 1 | B43: 小 | C43: 東区 | D43: 1 | E43: 11 | F43: 19 | G43: 1119 | H43: 東苗穂小 | J43: ひがしなえぼ | M43: 1119
A44: 1 | B44: 小 | C44: 東区 | D44: 1 | E44: 11 | F44: 20 | G44: 1120 | H44: 福移小 | J44: ふくい | M44: 1120
A45: 1 | B45: 小 | C45: 東区 | D45: 1 | E45: 11 | F45: 21 | G45: 1121 | H45: 伏古小 | J45: ふしこ | M45: 1121
A46: 1 | B46: 小 | C46: 東区 | D46: 1 | E46: 11 | F46: 22 | G46: 1122 | H46: 伏古北小 | J46: ふしこきた | M46: 1122
A47: 1 | B47: 小 | C47: 東区 | D47: 1 | E47: 11 | F47: 23 | G47: 1123 | H47: 北光小 | J47: ほっこう | M47: 1123
A48: 1 | B48: 小 | C48: 東区 | D48: 1 | E48: 11 | F48: 24 | G48: 1124 | H48: 本町小 | J48: ほんちょう | M48: 1124
A49: 1 | B49: 小 | C49: 東区 | D49: 1 | E49: 11 | F49: 25 | G49: 1125 | H49: 美香保小 | J49: みかほ | M49: 1125
A50: 1 | B50: 小 | C50: 東区 | D50: 1 | E50: 11 | F50: 26 | G50: 1126 | H50: 明園小 | J50: めいえん | M50: 1126
A51: 1 | B51: 小 | C51: 東区 | D51: 1 | E51: 11 | F51: 27 | G51: 1127 | H51: 元町小 | J51: もとまち | M51: 1127
A52: 1 | B52: 小 | C52: 東区 | D52: 1 | E52: 11 | F52: 28 | G52: 1128 | H52: 元町北小 | J52: もとまちきた | M52: 1128
A53: 1 | B53: 小 | C53: 西区 | D53: 2 | E53: 12 | F53: 1 | G53: 1201 | H53: 琴似小 | J53: ことに | M53: 1201
A54: 1 | B54: 小 | C54: 西区 | D54: 2 | E54: 12 | F54: 2 | G54: 1202 | H54: 琴似中央小 | J54: ことにちゅうおう | M54: 1202
A55: 1 | B55: 小 | C55: 西区 | D55: 2 | E55: 12 | F55: 3 | G55: 1203 | H55: 西園小 | J55: せいえん | M55: 1203
A56: 1 | B56: 小 | C56: 西区 | D56: 2 | E56: 12 | F56: 4 | G56: 1204 | H56: 手稲東小 | J56: ていねひがし | M56: 1204
A57: 1 | B57: 小 | C57: 西区 | D57: 2 | E57: 12 | F57: 5 | G57: 1205 | H57: 手稲宮丘小 | J57: ていねみやのおか | M57: 1205
A58: 1 | B58: 小 | C58: 西区 | D58: 2 | E58: 12 | F58: 6 | G58: 1206 | H58: 西小 | J58: にし | M58: 1206
A59: 1 | B59: 小 | C59: 西区 | D59: 2 | E59: 12 | F59: 7 | G59: 1207 | H59: 西野小 | J59: にしの | M59: 1207
A60: 1 | B60: 小 | C60: 西区 | D60: 2 | E60: 12 | F60: 8 | G60: 1208 | H60: 西野第二小 | J60: にしのだいに | M60: 1208
A61: 1 | B61: 小 | C61: 西区 | D61: 2 | E61: 12 | F61: 9 | G61: 1209 | H61: 二十四軒小 | J61: にじゅうよんけん | M61: 1209
A62: 1 | B62: 小 | C62: 西区 | D62: 2 | E62: 12 | F62: 10 | G62: 1210 | H62: 八軒小 | J62: はちけん | M62: 1210
A63: 1 | B63: 小 | C63: 西区 | D63: 2 | E63: 12 | F63: 11 | G63: 1211 | H63: 八軒北小 | J63: はちけんきた | M63: 1211
A64: 1 | B64: 小 | C64: 西区 | D64: 2 | E64: 12 | F64: 12 | G64: 1212 | H64: 八軒西小 | J64: はちけんにし | M64: 1212
A65: 1 | B65: 小 | C65: 西区 | D65: 2 | E65: 12 | F65: 13 | G65: 1213 | H65: 発寒小 | J65: はっさむ | M65: 1213
A66: 1 | B66: 小 | C66: 西区 | D66: 2 | E66: 12 | F66: 14 | G66: 1214 | H66: 発寒西小 | J66: はっさむにし | M66: 1214
A67: 1 | B67: 小 | C67: 西区 | D67: 2 | E67: 12 | F67: 15 | G67: 1215 | H67: 発寒東小 | J67: はっさむひがし | M67: 1215
A68: 1 | B68: 小 | C68: 西区 | D68: 2 | E68: 12 | F68: 16 | G68: 1216 | H68: 発寒南小 | J68: はっさむみなみ | M68: 1216
A69: 1 | B69: 小 | C69: 西区 | D69: 2 | E69: 12 | F69: 17 | G69: 1217 | H69: 福井野小 | J69: ふくいの | M69: 1217
A70: 1 | B70: 小 | C70: 西区 | D70: 2 | E70: 12 | F70: 18 | G70: 1218 | H70: 平和小 | J70: へいわ | M70: 1218
A71: 1 | B71: 小 | C71: 西区 | D71: 2 | E71: 12 | F71: 19 | G71: 1219 | H71: 山の手小 | J71: やまのて | M71: 1219
A72: 1 | B72: 小 | C72: 西区 | D72: 2 | E72: 12 | F72: 20 | G72: 1220 | H72: 山の手南小 | J72: やまのてみなみ | M72: 1220
A73: 1 | B73: 小 | C73: 西区 | D73: 2 | E73: 12 | F73: 21 | G73: 1221 | H73: 山の手養護小 | J73: やまのてようご | M73: 1221
A74: 1 | B74: =IF(A74="","",LEFT(VLOOKUP(A74,コード→校種,2,FALSE),1)) -> 小 | C74: 南区 | D74: =IF(C74="","",VLOOKUP(C74,区→コード,2,FALSE)) -> 3 | E74: =IF(OR(A74="",D74=""),"",A74*10+D74) -> 13 | F74: 1 | G74: =IF(OR(E74="",F74="",H74=""),"",E74*100+F74) -> 1301 | H74: 石山小 | J74: いしやま | M74: =IF(G74="","",G74) -> 1301
A75: 1 | B75: 小 | C75: 南区 | D75: 3 | E75: 13 | F75: 2 | G75: 1302 | H75: 石山東小 | J75: いしやまひがし | M75: 1302
A76: 1 | B76: 小 | C76: 南区 | D76: 3 | E76: 13 | F76: 3 | G76: 1303 | H76: 石山南小 | J76: いしやまみなみ | M76: 1303
A77: 1 | B77: 小 | C77: 南区 | D77: 3 | E77: 13 | F77: 4 | G77: 1304 | H77: 北の沢小 | J77: きたのさわ | M77: 1304
A78: 1 | B78: 小 | C78: 南区 | D78: 3 | E78: 13 | F78: 5 | G78: 1305 | H78: 駒岡小 | J78: こまおか | M78: 1305
A79: 1 | B79: 小 | C79: 南区 | D79: 3 | E79: 13 | F79: 6 | G79: 1306 | H79: 定山渓小 | J79: じょうざんけい | M79: 1306
A80: 1 | B80: 小 | C80: 南区 | D80: 3 | E80: 13 | F80: 7 | G80: 1307 | H80: 澄川小 | J80: すみかわ | M80: 1307
A81: 1 | B81: 小 | C81: 南区 | D81: 3 | E81: 13 | F81: 8 | G81: 1308 | H81: 澄川西小 | J81: すみかわにし | M81: 1308
A82: 1 | B82: 小 | C82: 南区 | D82: 3 | E82: 13 | F82: 9 | G82: 1309 | H82: 澄川南小 | J82: すみかわみなみ | M82: 1309
A83: 1 | B83: 小 | C83: 南区 | D83: 3 | E83: 13 | F83: 10 | G83: 1310 | H83: 常盤小 | J83: ときわ | M83: 1310
A84: 1 | B84: 小 | C84: 南区 | D84: 3 | E84: 13 | F84: 11 | G84: 1311 | H84: 藤野小 | J84: ふじの | M84: 1311
A85: 1 | B85: 小 | C85: 南区 | D85: 3 | E85: 13 | F85: 12 | G85: 1312 | H85: 藤の沢小 | J85: ふじのさわ | M85: 1312
A86: 1 | B86: 小 | C86: 南区 | D86: 3 | E86: 13 | F86: 13 | G86: 1313 | H86: 藤野南小 | J86: ふじのみなみ | M86: 1313
A87: 1 | B87: 小 | C87: 南区 | D87: 3 | E87: 13 | F87: 14 | G87: 1314 | H87: 真駒内公園小 | J87: まこまないこうえん | M87: 1314
A88: 1 | B88: 小 | C88: 南区 | D88: 3 | E88: 13 | F88: 15 | G88: 1315 | H88: 真駒内桜山小 | J88: まこまないさくらやま | M88: 1315
A89: 1 | B89: 小 | C89: 南区 | D89: 3 | E89: 13 | F89: 16 | G89: 1316 | H89: 簾舞小 | J89: みすまい | M89: 1316
A90: 1 | B90: 小 | C90: 南区 | D90: 3 | E90: 13 | F90: 17 | G90: 1317 | H90: 南小 | J90: みなみ | M90: 1317
A91: 1 | B91: 小 | C91: 南区 | D91: 3 | E91: 13 | F91: 18 | G91: 1318 | H91: 南の沢小 | J91: みなみのさわ | M91: 1318
A92: 1 | B92: 小 | C92: 南区 | D92: 3 | E92: 13 | F92: 19 | G92: 1319 | H92: 藻岩小 | J92: もいわ | M92: 1319
A93: 1 | B93: 小 | C93: 南区 | D93: 3 | E93: 13 | F93: 20 | G93: 1320 | H93: 藻岩北小 | J93: もいわきた | M93: 1320
A94: 1 | B94: 小 | C94: 南区 | D94: 3 | E94: 13 | F94: 21 | G94: 1321 | H94: 藻岩南小 | J94: もいわみなみ | M94: 1321
A95: 1 | B95: 小 | C95: 北区 | D95: 4 | E95: 14 | F95: 1 | G95: 1401 | H95: あいの里西小 | J95: あいのさとにし | M95: 1401
A96: 1 | B96: 小 | C96: 北区 | D96: 4 | E96: 14 | F96: 2 | G96: 1402 | H96: あいの里東小 | J96: あいのさとひがし | M96: 1402
A97: 1 | B97: 小 | C97: 北区 | D97: 4 | E97: 14 | F97: 3 | G97: 1403 | H97: 北九条小 | J97: きたくじょう | M97: 1403
A98: 1 | B98: 小 | C98: 北区 | D98: 4 | E98: 14 | F98: 4 | G98: 1404 | H98: 教育大附属小 | J98: きょういくだいふぞく | M98: 1404
A99: 1 | B99: 小 | C99: 北区 | D99: 4 | E99: 14 | F99: 5 | G99: 1405 | H99: 鴻城小 | J99: こうじょう | M99: 1405
A100: 1 | B100: 小 | C100: 北区 | D100: 4 | E100: 14 | F100: 6 | G100: 1406 | H100: 幌北小 | J100: こうほく | M100: 1406
A101: 1 | B101: 小 | C101: 北区 | D101: 4 | E101: 14 | F101: 7 | G101: 1407 | H101: 光陽小 | J101: こうよう | M101: 1407
A102: 1 | B102: 小 | C102: 北区 | D102: 4 | E102: 14 | F102: 8 | G102: 1408 | H102: 札幌聾小 | J102: さっぽろろう | M102: 1408
A103: 1 | B103: 小 | C103: 北区 | D103: 4 | E103: 14 | F103: 9 | G103: 1409 | H103: 篠路小 | J103: しのろ | M103: 1409
A104: 1 | B104: 小 | C104: 北区 | D104: 4 | E104: 14 | F104: 10 | G104: 1410 | H104: 篠路西小 | J104: しのろにし | M104: 1410
A105: 1 | B105: 小 | C105: 北区 | D105: 4 | E105: 14 | F105: 11 | G105: 1411 | H105: 新川小 | J105: しんかわ | M105: 1411
A106: 1 | B106: 小 | C106: 北区 | D106: 4 | E106: 14 | F106: 12 | G106: 1412 | H106: 新川中央小 | J106: しんかわちゅうおう | M106: 1412
A107: 1 | B107: 小 | C107: 北区 | D107: 4 | E107: 14 | F107: 13 | G107: 1413 | H107: 新光小 | J107: しんこう | M107: 1413
A108: 1 | B108: 小 | C108: 北区 | D108: 4 | E108: 14 | F108: 14 | G108: 1414 | H108: 新琴似小 | J108: しんことに | M108: 1414
A109: 1 | B109: 小 | C109: 北区 | D109: 4 | E109: 14 | F109: 15 | G109: 1415 | H109: 新琴似北小 | J109: しんことにきた | M109: 1415
A110: 1 | B110: 小 | C110: 北区 | D110: 4 | E110: 14 | F110: 16 | G110: 1416 | H110: 新琴似西小 | J110: しんことににし | M110: 1416
A111: 1 | B111: 小 | C111: 北区 | D111: 4 | E111: 14 | F111: 17 | G111: 1417 | H111: 新琴似緑小 | J111: しんことにみどり | M111: 1417
A112: 1 | B112: 小 | C112: 北区 | D112: 4 | E112: 14 | F112: 18 | G112: 1418 | H112: 新琴似南小 | J112: しんことにみなみ | M112: 1418
A113: 1 | B113: 小 | C113: 北区 | D113: 4 | E113: 14 | F113: 19 | G113: 1419 | H113: 新陽小 | J113: しんよう | M113: 1419
A114: 1 | B114: 小 | C114: 北区 | D114: 4 | E114: 14 | F114: 20 | G114: 1420 | H114: 太平小 | J114: たいへい | M114: 1420
A115: 1 | B115: 小 | C115: 北区 | D115: 4 | E115: 14 | F115: 21 | G115: 1421 | H115: 太平南小 | J115: たいへいみなみ | M115: 1421
A116: 1 | B116: 小 | C116: 北区 | D116: 4 | E116: 14 | F116: 22 | G116: 1422 | H116: 拓北小 | J116: たくほく | M116: 1422
A117: 1 | B117: 小 | C117: 北区 | D117: 4 | E117: 14 | F117: 23 | G117: 1423 | H117: 屯田小 | J117: とんでん | M117: 1423
A118: 1 | B118: 小 | C118: 北区 | D118: 4 | E118: 14 | F118: 24 | G118: 1424 | H118: 屯田北小 | J118: とんでんきた | M118: 1424
A119: 1 | B119: 小 | C119: 北区 | D119: 4 | E119: 14 | F119: 25 | G119: 1425 | H119: 屯田西小 | J119: とんでんにし | M119: 1425
A120: 1 | B120: 小 | C120: 北区 | D120: 4 | E120: 14 | F120: 26 | G120: 1426 | H120: 屯田南小 | J120: とんでんみなみ | M120: 1426
A121: 1 | B121: 小 | C121: 北区 | D121: 4 | E121: 14 | F121: 27 | G121: 1427 | H121: 白楊小 | J121: はくよう | M121: 1427
A122: 1 | B122: 小 | C122: 北区 | D122: 4 | E122: 14 | F122: 28 | G122: 1428 | H122: 茨戸小 | J122: ばらと | M122: 1428
A123: 1 | B123: 小 | C123: 北区 | D123: 4 | E123: 14 | F123: 29 | G123: 1429 | H123: 北陽小 | J123: ほくよう | M123: 1429
A124: 1 | B124: 小 | C124: 北区 | D124: 4 | E124: 14 | F124: 30 | G124: 1430 | H124: 百合が原小 | J124: ゆりがはら | M124: 1430
A125: 1 | B125: 小 | C125: 北区 | D125: 4 | E125: 14 | F125: 31 | G125: 1431 | H125: 和光小 | J125: わこう | M125: 1431
A126: 1 | B126: 小 | C126: 白石区 | D126: 5 | E126: 15 | F126: 1 | G126: 1501 | H126: 東橋小 | J126: あずまばし | M126: 1501
A127: 1 | B127: 小 | C127: 白石区 | D127: 5 | E127: 15 | F127: 2 | G127: 1502 | H127: 大谷地小 | J127: おおやち | M127: 1502
A128: 1 | B128: 小 | C128: 白石区 | D128: 5 | E128: 15 | F128: 3 | G128: 1503 | H128: 上白石小 | J128: かみしろいし | M128: 1503
A129: 1 | B129: 小 | C129: 白石区 | D129: 5 | E129: 15 | F129: 4 | G129: 1504 | H129: 川北小 | J129: かわきた | M129: 1504
A130: 1 | B130: 小 | C130: 白石区 | D130: 5 | E130: 15 | F130: 5 | G130: 1505 | H130: 菊水小 | J130: きくすい | M130: 1505
A131: 1 | B131: 小 | C131: 白石区 | D131: 5 | E131: 15 | F131: 6 | G131: 1506 | H131: 北郷小 | J131: きたごう | M131: 1506
A132: 1 | B132: 小 | C132: 白石区 | D132: 5 | E132: 15 | F132: 7 | G132: 1507 | H132: 北白石小 | J132: きたしろいし | M132: 1507
A133: 1 | B133: 小 | C133: 白石区 | D133: 5 | E133: 15 | F133: 8 | G133: 1508 | H133: 幌東小 | J133: こうとう | M133: 1508
A134: 1 | B134: 小 | C134: 白石区 | D134: 5 | E134: 15 | F134: 9 | G134: 1509 | H134: 白石小 | J134: しろいし | M134: 1509
A135: 1 | B135: 小 | C135: 白石区 | D135: 5 | E135: 15 | F135: 10 | G135: 1510 | H135: 南郷小 | J135: なんごう | M135: 1510
A136: 1 | B136: 小 | C136: 白石区 | D136: 5 | E136: 15 | F136: 11 | G136: 1511 | H136: 西白石小 | J136: にししろいし | M136: 1511
A137: 1 | B137: 小 | C137: 白石区 | D137: 5 | E137: 15 | F137: 12 | G137: 1512 | H137: 東川下小 | J137: ひがしかわしも | M137: 1512
A138: 1 | B138: =IF(A138="","",LEFT(VLOOKUP(A138,コード→校種,2,FALSE),1)) -> 小 | C138: 白石区 | D138: =IF(C138="","",VLOOKUP(C138,区→コード,2,FALSE)) -> 5 | E138: =IF(OR(A138="",D138=""),"",A138*10+D138) -> 15 | F138: 13 | G138: =IF(OR(E138="",F138="",H138=""),"",E138*100+F138) -> 1513 | H138: 東札幌小 | J138: ひがしさっぽろ | M138: =IF(G138="","",G138) -> 1513
A139: 1 | B139: 小 | C139: 白石区 | D139: 5 | E139: 15 | F139: 14 | G139: 1514 | H139: 東白石小 | J139: ひがししろいし | M139: 1514
A140: 1 | B140: 小 | C140: 白石区 | D140: 5 | E140: 15 | F140: 15 | G140: 1515 | H140: 平和通小 | J140: へいわどおり | M140: 1515
A141: 1 | B141: 小 | C141: 白石区 | D141: 5 | E141: 15 | F141: 16 | G141: 1516 | H141: 北都小 | J141: ほくと | M141: 1516
A142: 1 | B142: 小 | C142: 白石区 | D142: 5 | E142: 15 | F142: 17 | G142: 1517 | H142: 本郷小 | J142: ほんごう | M142: 1517
A143: 1 | B143: 小 | C143: 白石区 | D143: 5 | E143: 15 | F143: 18 | G143: 1518 | H143: 本通小 | J143: ほんどおり | M143: 1518
A144: 1 | B144: 小 | C144: 白石区 | D144: 5 | E144: 15 | F144: 19 | G144: 1519 | H144: 南白石小 | J144: みなみしろいし | M144: 1519
A145: 1 | B145: 小 | C145: 白石区 | D145: 5 | E145: 15 | F145: 20 | G145: 1520 | H145: 米里小 | J145: よねさと | M145: 1520
A146: 1 | B146: 小 | C146: 豊平区 | D146: 6 | E146: 16 | F146: 1 | G146: 1601 | H146: 旭小 | J146: あさひ | M146: 1601
A147: 1 | B147: 小 | C147: 豊平区 | D147: 6 | E147: 16 | F147: 2 | G147: 1602 | H147: あやめ野小 | J147: あやめの | M147: 1602
A148: 1 | B148: 小 | C148: 豊平区 | D148: 6 | E148: 16 | F148: 3 | G148: 1603 | H148: しらかば台小 | J148: しらかばだい | M148: 1603
A149: 1 | B149: 小 | C149: 豊平区 | D149: 6 | E149: 16 | F149: 4 | G149: 1604 | H149: 月寒小 | J149: つきさむ | M149: 1604
A150: 1 | B150: 小 | C150: 豊平区 | D150: 6 | E150: 16 | F150: 5 | G150: 1605 | H150: 月寒東小 | J150: つきさむひがし | M150: 1605
A151: 1 | B151: 小 | C151: 豊平区 | D151: 6 | E151: 16 | F151: 6 | G151: 1606 | H151: 東園小 | J151: とうえん | M151: 1606
A152: 1 | B152: 小 | C152: 豊平区 | D152: 6 | E152: 16 | F152: 7 | G152: 1607 | H152: 豊園小 | J152: とよぞの | M152: 1607
A153: 1 | B153: 小 | C153: 豊平区 | D153: 6 | E153: 16 | F153: 8 | G153: 1608 | H153: 豊平小 | J153: とよひら | M153: 1608
A154: 1 | B154: 小 | C154: 豊平区 | D154: 6 | E154: 16 | F154: 9 | G154: 1609 | H154: 中の島小 | J154: なかのしま | M154: 1609
A155: 1 | B155: 小 | C155: 豊平区 | D155: 6 | E155: 16 | F155: 10 | G155: 1610 | H155: 西岡小 | J155: にしおか | M155: 1610
A156: 1 | B156: 小 | C156: 豊平区 | D156: 6 | E156: 16 | F156: 11 | G156: 1611 | H156: 西岡北小 | J156: にしおかきた | M156: 1611
A157: 1 | B157: 小 | C157: 豊平区 | D157: 6 | E157: 16 | F157: 12 | G157: 1612 | H157: 西岡南小 | J157: にしおかみなみ | M157: 1612
A158: 1 | B158: 小 | C158: 豊平区 | D158: 6 | E158: 16 | F158: 13 | G158: 1613 | H158: 東山小 | J158: ひがしやま | M158: 1613
A159: 1 | B159: 小 | C159: 豊平区 | D159: 6 | E159: 16 | F159: 14 | G159: 1614 | H159: 羊丘小 | J159: ひつじがおか | M159: 1614
A160: 1 | B160: 小 | C160: 豊平区 | D160: 6 | E160: 16 | F160: 15 | G160: 1615 | H160: 平岸小 | J160: ひらぎし | M160: 1615
A161: 1 | B161: 小 | C161: 豊平区 | D161: 6 | E161: 16 | F161: 16 | G161: 1616 | H161: 平岸高台小 | J161: ひらぎしたかだい | M161: 1616
A162: 1 | B162: 小 | C162: 豊平区 | D162: 6 | E162: 16 | F162: 17 | G162: 1617 | H162: 平岸西小 | J162: ひらぎしにし | M162: 1617
A163: 1 | B163: 小 | C163: 豊平区 | D163: 6 | E163: 16 | F163: 18 | G163: 1618 | H163: 福住小 | J163: ふくずみ | M163: 1618
A164: 1 | B164: 小 | C164: 豊平区 | D164: 6 | E164: 16 | F164: 19 | G164: 1619 | H164: 美園小 | J164: みその | M164: 1619
A165: 1 | B165: 小 | C165: 豊平区 | D165: 6 | E165: 16 | F165: 20 | G165: 1620 | H165: みどり小 | J165: みどり | M165: 1620
A166: 1 | B166: 小 | C166: 豊平区 | D166: 6 | E166: 16 | F166: 21 | G166: 1621 | H166: 南月寒小 | J166: みなみつきさむ | M166: 1621
A167: 1 | B167: 小 | C167: 中央区 | D167: 7 | E167: 17 | F167: 1 | G167: 1701 | H167: 大倉山小 | J167: おおくらやま | M167: 1701
A168: 1 | B168: 小 | C168: 中央区 | D168: 7 | E168: 17 | F168: 2 | G168: 1702 | H168: 幌西小 | J168: こうさい | M168: 1702
A169: 1 | B169: 小 | C169: 中央区 | D169: 7 | E169: 17 | F169: 3 | G169: 1703 | H169: 幌南小 | J169: こうなん | M169: 1703
A170: 1 | B170: 小 | C170: 中央区 | D170: 7 | E170: 17 | F170: 4 | G170: 1704 | H170: 三角山小 | J170: さんかくやま | M170: 1704
A171: 1 | B171: 小 | C171: 中央区 | D171: 7 | E171: 17 | F171: 5 | G171: 1705 | H171: 資生館小 | J171: しせいかん | M171: 1705
A172: 1 | B172: 小 | C172: 中央区 | D172: 7 | E172: 17 | F172: 6 | G172: 1706 | H172: 桑園小 | J172: そうえん | M172: 1706
A173: 1 | B173: 小 | C173: 中央区 | D173: 7 | E173: 17 | F173: 7 | G173: 1707 | H173: 中央小 | J173: ちゅうおう | M173: 1707
A174: 1 | B174: 小 | C174: 中央区 | D174: 7 | E174: 17 | F174: 8 | G174: 1708 | H174: 二条小 | J174: にじょう | M174: 1708
A175: 1 | B175: 小 | C175: 中央区 | D175: 7 | E175: 17 | F175: 9 | G175: 1709 | H175: 日新小 | J175: にっしん | M175: 1709
A176: 1 | B176: 小 | C176: 中央区 | D176: 7 | E176: 17 | F176: 10 | G176: 1710 | H176: 盤渓小 | J176: ばんけい | M176: 1710
A177: 1 | B177: 小 | C177: 中央区 | D177: 7 | E177: 17 | F177: 11 | G177: 1711 | H177: 伏見小 | J177: ふしみ | M177: 1711
A178: 1 | B178: 小 | C178: 中央区 | D178: 7 | E178: 17 | F178: 12 | G178: 1712 | H178: 円山小 | J178: まるやま | M178: 1712
A179: 1 | B179: 小 | C179: 中央区 | D179: 7 | E179: 17 | F179: 13 | G179: 1713 | H179: 緑丘小 | J179: みどりがおか | M179: 1713
A180: 1 | B180: 小 | C180: 中央区 | D180: 7 | E180: 17 | F180: 14 | G180: 1714 | H180: 宮の森小 | J180: みやのもり | M180: 1714
A181: 1 | B181: 小 | C181: 中央区 | D181: 7 | E181: 17 | F181: 15 | G181: 1715 | H181: 山鼻小 | J181: やまはな | M181: 1715
A182: 1 | B182: 小 | C182: 中央区 | D182: 7 | E182: 17 | F182: 16 | G182: 1716 | H182: 山鼻南小 | J182: やまはなみなみ | M182: 1716
A183: 1 | B183: 小 | C183: 手稲区 | D183: 8 | E183: 18 | F183: 1 | G183: 1801 | H183: 稲積小 | J183: いなずみ | M183: 1801
A184: 1 | B184: 小 | C184: 手稲区 | D184: 8 | E184: 18 | F184: 2 | G184: 1802 | H184: 稲穂小 | J184: いなほ | M184: 1802
A185: 1 | B185: 小 | C185: 手稲区 | D185: 8 | E185: 18 | F185: 3 | G185: 1803 | H185: 新発寒小 | J185: しんはっさむ | M185: 1803
A186: 1 | B186: 小 | C186: 手稲区 | D186: 8 | E186: 18 | F186: 4 | G186: 1804 | H186: 新陵小 | J186: しんりょう | M186: 1804
A187: 1 | B187: 小 | C187: 手稲区 | D187: 8 | E187: 18 | F187: 5 | G187: 1805 | H187: 新陵東小 | J187: しんりょうひがし | M187: 1805
A188: 1 | B188: 小 | C188: 手稲区 | D188: 8 | E188: 18 | F188: 6 | G188: 1806 | H188: 手稲北小 | J188: ていねきた | M188: 1806
A189: 1 | B189: 小 | C189: 手稲区 | D189: 8 | E189: 18 | F189: 7 | G189: 1807 | H189: 手稲中央小 | J189: ていねちゅうおう | M189: 1807
A190: 1 | B190: 小 | C190: 手稲区 | D190: 8 | E190: 18 | F190: 8 | G190: 1808 | H190: 手稲鉄北小 | J190: ていねてつほく | M190: 1808
A191: 1 | B191: 小 | C191: 手稲区 | D191: 8 | E191: 18 | F191: 9 | G191: 1809 | H191: 手稲西小 | J191: ていねにし | M191: 1809
A192: 1 | B192: 小 | C192: 手稲区 | D192: 8 | E192: 18 | F192: 10 | G192: 1810 | H192: 手稲山口小 | J192: ていねやまぐち | M192: 1810
A193: 1 | B193: 小 | C193: 手稲区 | D193: 8 | E193: 18 | F193: 11 | G193: 1811 | H193: 手稲養護小 | J193: ていねようご | M193: 1811
A194: 1 | B194: 小 | C194: 手稲区 | D194: 8 | E194: 18 | F194: 12 | G194: 1812 | H194: 富丘小 | J194: とみおか | M194: 1812
A195: 1 | B195: 小 | C195: 手稲区 | D195: 8 | E195: 18 | F195: 13 | G195: 1813 | H195: 西宮の沢小 | J195: にしみやのさわ | M195: 1813
A196: 1 | B196: 小 | C196: 手稲区 | D196: 8 | E196: 18 | F196: 14 | G196: 1814 | H196: 星置東小 | J196: ほしおきひがし | M196: 1814
A197: 1 | B197: 小 | C197: 手稲区 | D197: 8 | E197: 18 | F197: 15 | G197: 1815 | H197: 前田小 | J197: まえだ | M197: 1815
A198: 1 | B198: 小 | C198: 手稲区 | D198: 8 | E198: 18 | F198: 16 | G198: 1816 | H198: 前田北小 | J198: まえだきた | M198: 1816
A199: 1 | B199: 小 | C199: 手稲区 | D199: 8 | E199: 18 | F199: 17 | G199: 1817 | H199: 前田中央小 | J199: まえだちゅうおう | M199: 1817
A200: 1 | B200: 小 | C200: 厚別区 | D200: 9 | E200: 19 | F200: 1 | G200: 1901 | H200: 青葉小 | J200: あおば | M200: 1901
A201: 1 | B201: 小 | C201: 厚別区 | D201: 9 | E201: 19 | F201: 2 | G201: 1902 | H201: 厚別北小 | J201: あつべつきた | M201: 1902
... 124 more rows

Sheet 設定 (hidden)
E1: 部 門
E2: k1 | F2: 小1硬 | G2: k1 | I2: コード | J2: 区名 | K2: 受付人数 | M2: 出品者数 | O2: 受賞人数 | Q2: A | R2: 札幌市長賞 | S2: A
E3: k2 | F3: 小2硬 | G3: k2 | K3: 小学校 | L3: 中学校 | M3: 小学校 | N3: 中学校 | O3: 小学校 | P3: 中学校 | Q3: B | R3: 札幌市議会議長賞 | S3: B
E4: s1 | F4: 小1 | G4: s1 | I4: 1 | J4: =VLOOKUP(I4,コード→区,2,FALSE) -> 東区 | Q4: C | R4: 札幌市教育委員会教育長賞 | S4: C
E5: s2 | F5: 小2 | G5: s2 | I5: 2 | J5: 西区 | Q5: D | R5: 札幌市PTA協議会賞 | S5: D
A6: 校 種 | E6: s3 | F6: 小3 | G6: s3 | I6: 3 | J6: 南区 | Q6: E | R6: 札幌市教育協会賞 | S6: E
A7: 1 | B7: 小学校 | C7: 1 | E7: s4 | F7: 小4 | G7: s4 | I7: 4 | J7: 北区 | Q7: F | R7: 朝日新聞社賞 | S7: F
A8: 2 | B8: 中学校 | C8: 2 | E8: s5 | F8: 小5 | G8: s5 | I8: 5 | J8: 白石区 | Q8: G | R8: 北海道書道教育連盟賞 | S8: G
E9: s6 | F9: 小6 | G9: s6 | I9: 6 | J9: 豊平区 | Q9: H | R9: 札幌市書写書道教育研究会賞 | S9: H
A10: 所在地 (100の位) | E10: c1 | F10: 中1 | G10: c1 | I10: 7 | J10: 中央区 | Q10: 1 | R10: 推薦 | S10: 1
A11: 0 | B11: 清田区 | C11: 0 | E11: c2 | F11: 中2 | G11: c2 | I11: 8 | J11: 手稲区 | Q11: 2 | R11: 特選 | S11: 2
A12: 1 | B12: 東区 | C12: 1 | E12: c3 | F12: 中3 | G12: c3 | I12: 9 | J12: 厚別区 | Q12: 3 | R12: 秀作 | S12: 3
A13: 2 | B13: 西区 | C13: 2 | I13: 10 | Q13: 4 | R13: 佳作 | S13: 4
A14: 3 | B14: 南区 | C14: 3 | E14: 曜日設定 | I14: 11 | Q14: 5 | R14: 入選 | S14: 5
A15: 4 | B15: 北区 | C15: 4 | E15: 1 | F15: 月
A16: 5 | B16: 白石区 | C16: 5 | E16: 2 | F16: 火
A17: 6 | B17: 豊平区 | C17: 6 | E17: 3 | F17: 水
A18: 7 | B18: 中央区 | C18: 7 | E18: 4 | F18: 木
A19: 8 | B19: 手稲区 | C19: 8 | E19: 5 | F19: 金
A20: 9 | B20: 厚別区 | C20: 9 | E20: 6 | F20: 土
E21: 7 | F21: 日
A22: 実施月日リスト
A23: 月 | B23: 日
A24: 9 | B24: 1
A25: 10 | B25: 2
B26: 3
B27: 4
B28: 5
B29: 6
B30: 7
B31: 8
B32: 9
B33: 10
B34: 11
B35: 12
B36: 13
B37: 14
B38: 15
B39: 16
B40: 17
B41: 18
B42: 19
B43: 20
B44: 21
B45: 22
B46: 23
B47: 24
B48: 25
B49: 26
B50: 27
B51: 28
B52: 29
B53: 30
B54: 31
